[Event "Nové Hrady - Open"]
[Site "Nové Hrady, Czech Republic"]
[Date "2023.08.15"]
[Round "3.2"]
[White "Šimůnek, Jakub Šimon"]
[Black "Urban, Zdeněk"]
[Result "0-1"]
[TimeControl "2x90min+30s"]
[WhiteFideId "23709464"]
[BlackFideId "312754"]
[WhiteElo "1921"]
[BlackElo "2118"]

1. e4 {[%clk 01:30:56]} {[%emt 00:00:04]} c5 {[%clk 01:30:50]} {[%emt
00:00:10]} 2. Nf3 {[%clk 01:31:20]} {[%emt 00:00:06]} d6 {[%clk 01:31:10]}
{[%emt 00:00:11]} 3. Bb5+ {[%clk 01:31:39]} {[%emt 00:00:10]} Bd7 {[%clk
01:31:24]} {[%emt 00:00:16]} 4. Bxd7+ {[%clk 01:32:04]} {[%emt 00:00:05]} Nxd7
{[%clk 01:31:38]} {[%emt 00:00:15]} 5. O-O {[%clk 01:32:19]} {[%emt 00:00:15]}
Ngf6 {[%clk 01:32:05]} {[%emt 00:00:03]} 6. Qe2 {[%clk 01:32:40]} {[%emt
00:00:09]} e6 {[%clk 01:29:43]} {[%emt 00:02:51]} 7. c3 {[%clk 01:32:42]}
{[%emt 00:00:29]} Be7 {[%clk 01:26:27]} {[%emt 00:03:46]} 8. d4 {[%clk
01:33:02]} {[%emt 00:00:11]} O-O {[%clk 01:26:43]} {[%emt 00:00:12]} 9. Rd1
{[%clk 01:29:27]} {[%emt 00:04:06]} cxd4 {[%clk 01:25:54]} {[%emt 00:01:20]} 10.
cxd4 {[%clk 01:29:48]} {[%emt 00:00:10]} Rc8 {[%clk 01:25:07]} {[%emt
00:01:15]} 11. Nc3 {[%clk 01:28:05]} {[%emt 00:02:13]} Nb6 {[%clk 01:24:38]}
{[%emt 00:00:59]} 12. Bg5 {[%clk 01:20:17]} {[%emt 00:08:19]} d5 {[%clk
01:23:48]} {[%emt 00:01:19]} 13. e5 {[%clk 01:18:15]} {[%emt 00:02:33]} Nfd7
{[%clk 01:24:04]} {[%emt 00:00:13]} 14. Bxe7 {[%clk 01:18:39]} {[%emt
00:00:07]} Qxe7 {[%clk 01:24:26]} {[%emt 00:00:07]} 15. Nb5 {[%clk 01:18:08]}
{[%emt 00:01:02]} a6 {[%clk 01:22:19]} {[%emt 00:02:35]} 16. Nd6 {[%clk
01:16:10]} {[%emt 00:02:30]} Rc7 {[%clk 01:16:31]} {[%emt 00:06:17]} 17. Rac1
{[%clk 01:13:28]} {[%emt 00:03:14]} Nb8 {[%clk 01:16:52]} {[%emt 00:00:08]} 18.
Rxc7 {[%clk 01:07:05]} {[%emt 00:06:53]} Qxc7 {[%clk 01:17:19]} {[%emt
00:00:03]} 19. Qd2 {[%clk 01:07:27]} {[%emt 00:00:08]} Nc8 {[%clk 01:16:09]}
{[%emt 00:01:35]} 20. Rc1 {[%clk 00:58:39]} {[%emt 00:09:23]} Qd7 {[%clk
01:16:19]} {[%emt 00:00:19]} 21. Nxc8 {[%clk 00:51:43]} {[%emt 00:07:27]} Rxc8
{[%clk 01:16:40]} {[%emt 00:00:09]} 22. g3 {[%clk 00:51:17]} {[%emt 00:00:56]}
h6 {[%clk 01:16:15]} {[%emt 00:00:54]} 23. Ne1 {[%clk 00:43:27]} {[%emt
00:08:21]} Rxc1 {[%clk 01:12:01]} {[%emt 00:04:44]} 24. Qxc1 {[%clk 00:43:51]}
{[%emt 00:00:05]} Qc6 {[%clk 01:12:23]} {[%emt 00:00:09]} 25. Qc5 {[%clk
00:37:59]} {[%emt 00:06:21]} b6 {[%clk 01:10:19]} {[%emt 00:02:33]} 26. Qe7
{[%clk 00:37:49]} {[%emt 00:00:41]} Qc1 {[%clk 01:09:31]} {[%emt 00:01:18]} 27.
Qd8+ {[%clk 00:32:49]} {[%emt 00:05:31]} Kh7 {[%clk 01:08:22]} {[%emt
00:01:38]} 28. Kf1 {[%clk 00:33:12]} {[%emt 00:00:07]} Nc6 {[%clk 01:06:02]}
{[%emt 00:02:50]} 29. Qxb6 {[%clk 00:30:25]} {[%emt 00:03:18]} Qc4+ {[%clk
01:06:23]} {[%emt 00:00:08]} 30. Kg2 {[%clk 00:30:49]} {[%emt 00:00:07]} Nxd4
{[%emt 00:01:59]} 31. Qa5 {[%emt 00:01:08]} Nc6 {[%emt 00:03:10]} 32. Qc3
{[%emt 00:00:27]} Qxc3 {[%clk 01:06:17]} 33. bxc3 {[%clk 00:27:09]} Nxe5 {[%emt
00:02:38]} 34. f4 {[%clk 00:25:02]} {[%emt 00:00:08]} Nc4 {[%emt 00:00:22]} 35.
Kf2 {[%clk 00:25:18]} {[%emt 00:00:02]} Kg6 {[%clk 01:06:14]} {[%emt 00:01:14]}
36. h3 {[%clk 00:25:04]} {[%emt 00:00:45]} Nd2 {[%clk 01:00:36]} {[%emt
00:06:06]} 37. Ke3 {[%clk 00:24:12]} {[%emt 00:01:24]} Ne4 {[%clk 01:00:54]}
{[%emt 00:00:12]} 38. Kd4 {[%clk 00:24:33]} {[%emt 00:00:10]} Nxg3 {[%clk
00:59:11]} {[%emt 00:02:11]} 39. Kc5 {[%clk 00:24:34]} {[%emt 00:00:30]} Ne2
{[%clk 00:54:44]} {[%emt 00:04:56]} 40. a4 {[%emt 00:05:16]} Nxc3 {[%clk
00:51:50]} {[%emt 00:01:36]} 41. a5 {[%clk 00:22:00]} {[%emt 00:00:07]} Na4+
{[%clk 00:51:06]} {[%emt 00:01:12]} 42. Kc6 {[%clk 00:20:02]} {[%emt 00:02:31]}
Nb2 {[%clk 00:50:52]} {[%emt 00:00:43]} 43. Kb6 {[%clk 00:20:26]} {[%emt
00:00:06]} Kf5 {[%clk 00:49:07]} {[%emt 00:02:13]} 44. Kxa6 {[%clk 00:20:46]}
{[%emt 00:00:12]} Nc4 {[%clk 00:48:59]} {[%emt 00:00:38]} 45. Kb5 {[%clk
00:20:49]} {[%emt 00:00:28]} Nxa5 {[%clk 00:48:52]} {[%emt 00:00:36]} 0-1

[Event "Nové Hrady - Open"]
[Site "Nové Hrady, Czech Republic"]
[Date "2023.08.15"]
[Round "3.3"]
[White "Babula, Milan"]
[Black "Slabý, Matěj"]
[Result "1-0"]
[TimeControl "2x90min+30s"]
[WhiteFideId "300632"]
[BlackFideId "23734876"]
[WhiteElo "2087"]
[BlackElo "1894"]

1. e4 {[%clk 01:30:59]} {[%emt 00:20:27]} c5 {[%clk 01:30:54]} {[%emt
00:00:06]} 2. Nf3 {[%clk 01:31:26]} {[%emt 00:00:03]} e6 {[%clk 01:31:13]}
{[%emt 00:00:11]} 3. d4 {[%clk 01:31:49]} {[%emt 00:00:07]} cxd4 {[%clk
01:31:37]} {[%emt 00:00:05]} 4. Nxd4 {[%clk 01:32:17]} {[%emt 00:00:03]} a6
{[%clk 01:31:59]} {[%emt 00:00:08]} 5. Bd3 {[%clk 01:32:11]} {[%emt 00:00:36]}
d6 {[%clk 01:31:56]} {[%emt 00:00:33]} 6. O-O {[%clk 01:32:07]} {[%emt
00:00:34]} Nf6 {[%clk 01:32:02]} {[%emt 00:00:24]} 7. c4 {[%clk 01:30:47]}
{[%emt 00:01:50]} Qc7 {[%clk 01:31:24]} {[%emt 00:01:07]} 8. Nc3 {[%clk
01:30:40]} {[%emt 00:00:38]} b6 {[%clk 01:31:43]} {[%emt 00:00:11]} 9. Be3
{[%clk 01:26:41]} {[%emt 00:04:29]} Bb7 {[%clk 01:31:39]} {[%emt 00:00:34]} 10.
f4 {[%clk 01:24:33]} {[%emt 00:02:38]} Nbd7 {[%clk 01:31:45]} {[%emt 00:00:24]}
11. f5 {[%clk 01:20:02]} {[%emt 00:05:01]} e5 {[%clk 01:20:27]} {[%emt
00:11:49]} 12. Nb3 {[%clk 01:19:47]} {[%emt 00:00:45]} Rc8 {[%clk 01:11:31]}
{[%emt 00:09:25]} 13. Qe2 {[%clk 01:13:29]} {[%emt 00:06:48]} h5 {[%clk
00:58:38]} {[%emt 00:13:23]} 14. h3 {[%clk 01:08:37]} {[%emt 00:05:21]} h4
{[%clk 00:58:18]} {[%emt 00:00:50]} 15. Qf2 {[%clk 01:06:14]} {[%emt 00:02:54]}
Be7 {[%clk 00:49:47]} {[%emt 00:09:01]} 16. a4 {[%clk 01:06:14]} {[%emt
00:00:30]} Nc5 {[%clk 00:49:07]} {[%emt 00:01:11]} 17. Nxc5 {[%clk 01:05:39]}
{[%emt 00:01:05]} bxc5 {[%clk 00:49:36]} {[%emt 00:00:02]} 18. a5 {[%clk
01:01:41]} {[%emt 00:04:26]} Bc6 {[%clk 00:42:20]} {[%emt 00:07:46]} 19. Rfb1
{[%clk 00:48:15]} {[%emt 00:13:56]} Rb8 {[%clk 00:29:24]} {[%emt 00:13:26]} 20.
Nd5 {[%clk 00:36:32]} {[%emt 00:12:13]} Bxd5 {[%clk 00:29:48]} {[%emt
00:00:06]} 21. cxd5 {[%clk 00:36:17]} {[%emt 00:00:45]} Rb4 {[%clk 00:29:47]}
{[%emt 00:00:31]} 22. Qc2 {[%clk 00:34:41]} {[%emt 00:02:05]} O-O {[%clk
00:25:56]} {[%emt 00:04:22]} 23. Bd2 {[%clk 00:32:38]} {[%emt 00:02:34]} Rb7
{[%clk 00:21:07]} {[%emt 00:05:19]} 24. Bxa6 {[%clk 00:32:27]} {[%emt
00:00:40]} Ra7 {[%clk 00:21:22]} {[%emt 00:00:15]} 25. Bd3 {[%clk 00:32:27]}
{[%emt 00:00:30]} c4 {[%clk 00:16:34]} {[%emt 00:05:18]} 26. Qxc4 {[%clk
00:32:21]} {[%emt 00:00:36]} Qxc4 {[%clk 00:16:58]} {[%emt 00:00:06]} 27. Bxc4
{[%clk 00:32:49]} {[%emt 00:00:02]} Nxe4 {[%clk 00:16:56]} {[%emt 00:00:32]} 28.
Be3 {[%clk 00:33:17]} {[%emt 00:00:02]} Rc7 {[%clk 00:15:16]} {[%emt 00:02:10]}
29. Bb5 {[%clk 00:29:11]} {[%emt 00:04:36]} Rb7 {[%clk 00:04:08]} {[%emt
00:11:39]} 30. Bc6 {[%clk 00:29:11]} {[%emt 00:00:29]} Rb3 {[%clk 00:04:17]}
{[%emt 00:00:20]} 31. Ra3 {[%clk 00:29:14]} {[%emt 00:00:27]} 1-0

[Event "Nové Hrady - Open"]
[Site "Nové Hrady, Czech Republic"]
[Date "2023.08.15"]
[Round "3.4"]
[White "Pospěch, Radim"]
[Black "Steinbauer, Sebastián"]
[Result "1-0"]
[TimeControl "2x90min+30s"]
[WhiteFideId "329835"]
[BlackFideId "399272"]
[WhiteElo "1874"]
[BlackElo "1782"]

1. d4 {[%clk 01:30:57]} {[%emt 00:00:03]} Nf6 {[%clk 01:30:54]} {[%emt
00:00:07]} 2. c4 {[%clk 01:31:03]} {[%emt 00:00:23]} e6 {[%clk 01:30:59]}
{[%emt 00:00:25]} 3. Nc3 {[%clk 01:31:21]} {[%emt 00:00:12]} d5 {[%clk
01:30:55]} {[%emt 00:00:34]} 4. Bg5 {[%clk 01:31:17]} {[%emt 00:00:34]} c5
{[%clk 01:30:00]} {[%emt 00:01:26]} 5. e3 {[%clk 01:28:33]} {[%emt 00:03:14]}
cxd4 {[%clk 01:30:02]} {[%emt 00:00:28]} 6. exd4 {[%clk 01:28:55]} {[%emt
00:00:07]} Be7 {[%clk 01:29:40]} {[%emt 00:00:53]} 7. Nf3 {[%clk 01:29:08]}
{[%emt 00:00:16]} Nc6 {[%clk 01:29:32]} {[%emt 00:00:38]} 8. Rc1 {[%clk
01:26:25]} {[%emt 00:03:13]} O-O {[%clk 01:29:30]} {[%emt 00:00:33]} 9. a3
{[%clk 01:23:34]} {[%emt 00:03:21]} a6 {[%clk 01:25:34]} {[%emt 00:04:26]} 10.
Be2 {[%clk 01:16:06]} {[%emt 00:07:56]} dxc4 {[%clk 01:25:53]} {[%emt
00:00:12]} 11. Bxc4 {[%clk 01:16:30]} {[%emt 00:00:06]} b5 {[%clk 01:26:06]}
{[%emt 00:00:18]} 12. Be2 {[%clk 01:08:10]} {[%emt 00:08:49]} Bb7 {[%clk
01:26:12]} {[%emt 00:00:24]} 13. O-O {[%clk 01:08:20]} {[%emt 00:00:20]} Nd5
{[%clk 01:26:00]} {[%emt 00:00:42]} 14. Bxe7 {[%clk 01:07:27]} {[%emt
00:01:24]} Ncxe7 {[%clk 01:25:45]} {[%emt 00:00:45]} 15. Re1 {[%clk 01:01:48]}
{[%emt 00:06:08]} Qd6 {[%clk 01:24:09]} {[%emt 00:02:06]} 16. Ne4 {[%clk
01:00:08]} {[%emt 00:02:11]} Qb6 {[%clk 01:24:37]} {[%emt 00:00:02]} 17. Nc5
{[%clk 00:59:56]} {[%emt 00:00:42]} Rfd8 {[%clk 01:24:25]} {[%emt 00:00:42]} 18.
Qd2 {[%clk 00:53:36]} {[%emt 00:06:49]} Rac8 {[%clk 01:22:03]} {[%emt
00:02:53]} 19. b4 {[%clk 00:52:55]} {[%emt 00:01:10]} Ng6 {[%clk 01:20:21]}
{[%emt 00:02:13]} 20. g3 {[%clk 00:46:09]} {[%emt 00:07:16]} Nf6 {[%clk
01:18:50]} {[%emt 00:02:00]} 21. Nxb7 {[%clk 00:41:54]} {[%emt 00:04:45]} Qxb7
{[%clk 01:19:06]} {[%emt 00:00:14]} 22. Qb2 {[%clk 00:39:03]} {[%emt 00:03:21]}
Kf8 {[%clk 01:12:45]} {[%emt 00:06:51]} 23. Ne5 {[%clk 00:33:29]} {[%emt
00:06:03]} Nxe5 {[%clk 01:13:00]} {[%emt 00:00:15]} 24. dxe5 {[%clk 00:33:53]}
{[%emt 00:00:06]} Nd5 {[%clk 01:13:14]} {[%emt 00:00:17]} 25. Bf3 {[%clk
00:32:53]} {[%emt 00:01:30]} Rxc1 {[%clk 01:12:55]} {[%emt 00:00:50]} 26. Rxc1
{[%clk 00:32:13]} {[%emt 00:01:10]} Rc8 {[%clk 01:12:14]} {[%emt 00:01:12]} 27.
Rd1 {[%clk 00:31:48]} {[%emt 00:00:54]} Qc6 {[%clk 01:11:58]} {[%emt 00:00:46]}
28. Bxd5 {[%clk 00:27:29]} {[%emt 00:04:48]} exd5 {[%clk 01:12:19]} {[%emt
00:00:09]} 29. Qd4 {[%clk 00:26:03]} {[%emt 00:01:57]} Rd8 {[%clk 01:12:27]}
{[%emt 00:00:23]} 30. Qh4 {[%clk 00:26:11]} {[%emt 00:00:20]} Qc7 {[%clk
01:11:53]} {[%emt 00:01:05]} 31. Qd4 {[%clk 00:16:38]} {[%emt 00:10:03]} h6
{[%clk 01:10:17]} {[%emt 00:02:07]} 32. Kg2 {[%clk 00:16:15]} {[%emt 00:00:52]}
Rd7 {[%clk 01:09:24]} {[%emt 00:01:23]} 33. Kf3 {[%clk 00:13:22]} {[%emt
00:03:23]} Qc6 {[%clk 01:06:36]} {[%emt 00:03:17]} 34. Qc5+ {[%clk 00:10:51]}
{[%emt 00:03:02]} Qxc5 {[%clk 01:06:55]} {[%emt 00:00:11]} 35. bxc5 {[%clk
00:11:18]} {[%emt 00:00:04]} Ke7 {[%clk 01:07:19]} {[%emt 00:00:06]} 36. Ke3
{[%clk 00:11:34]} {[%emt 00:00:13]} Ke6 {[%clk 01:06:53]} {[%emt 00:00:56]} 37.
Kd4 {[%clk 00:12:02]} {[%emt 00:00:03]} Rc7 {[%clk 01:05:31]} {[%emt 00:01:52]}
38. Rb1 {[%clk 00:11:30]} {[%emt 00:01:02]} Rb7 {[%clk 01:04:32]} {[%emt
00:01:30]} 39. c6 {[%clk 00:11:23]} {[%emt 00:00:36]} Rc7 {[%clk 01:03:27]}
{[%emt 00:01:35]} 40. Kc5 {[%clk 00:11:41]} {[%emt 00:00:12]} 1-0

[Event "Nové Hrady - Open"]
[Site "Nové Hrady, Czech Republic"]
[Date "2023.08.15"]
[Round "3.5"]
[White "Novák, Rudolf"]
[Black "Matyska, Jiří"]
[Result "0-1"]
[TimeControl "2x90min+30s"]
[WhiteFideId "333352"]
[BlackFideId "309370"]
[WhiteElo "1361"]
[BlackElo "1852"]

1. e4 {[%clk 01:28:53]} {[%emt 00:02:06]} e6 {[%clk 01:30:51]} {[%emt
00:00:09]} 2. d4 {[%clk 01:29:15]} {[%emt 00:00:08]} b6 {[%clk 01:31:16]}
{[%emt 00:00:06]} 3. c4 {[%clk 01:28:56]} {[%emt 00:00:49]} Bb7 {[%clk
01:31:36]} {[%emt 00:00:09]} 4. Nc3 {[%clk 01:28:57]} {[%emt 00:00:30]} Bb4
{[%clk 01:31:26]} {[%emt 00:00:40]} 5. d5 {[%clk 01:25:37]} {[%emt 00:03:50]}
Nf6 {[%clk 01:30:04]} {[%emt 00:01:52]} 6. Bd3 {[%clk 01:25:22]} {[%emt
00:00:44]} O-O {[%clk 01:30:26]} {[%emt 00:00:08]} 7. Bg5 {[%clk 01:25:28]}
{[%emt 00:00:24]} exd5 {[%clk 01:27:40]} {[%emt 00:03:16]} 8. cxd5 {[%clk
01:21:46]} {[%emt 00:04:12]} h6 {[%clk 01:24:53]} {[%emt 00:03:18]} 9. Bh4
{[%clk 01:21:26]} {[%emt 00:00:50]} g5 {[%clk 01:22:52]} {[%emt 00:02:30]} 10.
Bg3 {[%clk 01:21:46]} {[%emt 00:00:10]} Re8 {[%clk 01:23:17]} {[%emt 00:00:06]}
11. Kf1 {[%clk 01:20:30]} {[%emt 00:01:47]} Bxc3 {[%clk 01:23:22]} {[%emt
00:00:24]} 12. bxc3 {[%clk 01:20:53]} {[%emt 00:00:08]} Nxe4 {[%clk 01:23:36]}
{[%emt 00:00:15]} 13. c4 {[%clk 01:20:29]} {[%emt 00:00:54]} d6 {[%clk
01:19:51]} {[%emt 00:04:15]} 14. Qc2 {[%clk 01:19:29]} {[%emt 00:01:30]} Qf6
{[%clk 01:18:16]} {[%emt 00:02:05]} 15. Re1 {[%clk 01:18:51]} {[%emt 00:01:08]}
Nxg3+ {[%clk 01:17:53]} {[%emt 00:00:53]} 16. hxg3 {[%clk 01:19:13]} {[%emt
00:00:06]} Rxe1+ {[%clk 01:17:58]} {[%emt 00:00:27]} 17. Kxe1 {[%clk 01:19:35]}
{[%emt 00:00:08]} Nd7 {[%clk 01:18:14]} {[%emt 00:00:13]} 18. Ne2 {[%clk
01:15:35]} {[%emt 00:04:31]} Nc5 {[%clk 01:16:43]} {[%emt 00:02:01]} 19. Bf5
{[%clk 01:12:03]} {[%emt 00:03:59]} Re8 {[%clk 01:08:20]} {[%emt 00:08:54]} 20.
f3 {[%clk 01:09:58]} {[%emt 00:02:36]} Qa1+ {[%clk 01:07:40]} {[%emt 00:01:10]}
21. Qb1 {[%clk 01:09:52]} {[%emt 00:00:36]} Qc3+ {[%clk 01:07:28]} {[%emt
00:00:43]} 22. Kf2 {[%clk 01:10:04]} {[%emt 00:00:17]} Qe3+ {[%clk 01:07:52]}
{[%emt 00:00:06]} 23. Kf1 {[%emt 00:01:46]} 0-1

[Event "Nové Hrady - Open"]
[Site "Nové Hrady, Czech Republic"]
[Date "2023.08.15"]
[Round "3.6"]
[White "Garabik, Marek"]
[Black "Hejda, Ondřej"]
[Result "1-0"]
[TimeControl "2x90min+30s"]
[WhiteFideId "23717742"]
[BlackFideId "23713623"]
[WhiteElo "1738"]
[BlackElo "1246"]

1. e4 {[%clk 01:30:50]} {[%emt 00:00:10]} c6 {[%clk 01:30:51]} {[%emt
00:00:09]} 2. d4 {[%clk 01:31:15]} {[%emt 00:00:05]} d5 {[%clk 01:31:11]}
{[%emt 00:00:09]} 3. f3 {[%clk 01:31:35]} {[%emt 00:00:10]} e6 {[%clk
01:30:10]} {[%emt 00:01:33]} 4. Nc3 {[%clk 01:31:37]} {[%emt 00:00:27]} c5
{[%clk 01:29:24]} {[%emt 00:01:17]} 5. exd5 {[%clk 01:11:27]} {[%emt 00:20:39]}
exd5 {[%clk 01:27:35]} {[%emt 00:02:19]} 6. dxc5 {[%clk 01:06:35]} {[%emt
00:05:22]} d4 {[%clk 01:27:06]} {[%emt 00:00:59]} 7. Ne4 {[%clk 01:05:11]}
{[%emt 00:01:54]} Nf6 {[%clk 01:22:56]} {[%emt 00:04:40]} 8. Bg5 {[%clk
01:02:23]} {[%emt 00:03:18]} Bf5 {[%clk 01:19:28]} {[%emt 00:03:58]} 9. Bb5+
{[%clk 01:02:06]} {[%emt 00:00:47]} Nc6 {[%clk 01:18:57]} {[%emt 00:01:01]} 10.
Bxc6+ {[%clk 01:00:04]} {[%emt 00:02:32]} bxc6 {[%clk 01:19:26]} {[%emt
00:00:02]} 11. Bxf6 {[%clk 01:00:10]} {[%emt 00:00:23]} gxf6 {[%clk 01:19:40]}
{[%emt 00:00:16]} 12. Qe2 {[%clk 00:59:21]} {[%emt 00:01:19]} Be6 {[%clk
01:16:10]} {[%emt 00:03:59]} 13. Qa6 {[%clk 00:54:41]} {[%emt 00:05:10]} Bd5
{[%clk 01:14:19]} {[%emt 00:02:22]} 14. Qe2 {[%clk 00:53:15]} {[%emt 00:01:57]}
Be6 {[%clk 01:13:48]} {[%emt 00:01:00]} 15. g4 {[%clk 00:41:56]} {[%emt
00:11:49]} Rb8 {[%clk 01:08:58]} {[%emt 00:05:20]} 16. b3 {[%clk 00:37:36]}
{[%emt 00:04:49]} Be7 {[%clk 01:02:35]} {[%emt 00:06:54]} 17. Nh3 {[%clk
00:28:35]} {[%emt 00:09:32]} Bd5 {[%clk 00:59:59]} {[%emt 00:03:04]} 18. Nxf6+
{[%clk 00:28:09]} {[%emt 00:00:56]} Kf8 {[%clk 00:59:18]} {[%emt 00:01:12]} 19.
Nxd5 {[%clk 00:28:22]} {[%emt 00:00:17]} Qxd5 {[%clk 00:59:31]} {[%emt
00:00:16]} 20. Nf4 {[%clk 00:26:39]} {[%emt 00:02:14]} Qxc5 {[%clk 00:59:06]}
{[%emt 00:00:55]} 21. Nd3 {[%clk 00:26:56]} {[%emt 00:00:13]} Qc3+ {[%clk
00:58:19]} {[%emt 00:01:16]} 22. Kf2 {[%clk 00:26:27]} {[%emt 00:01:00]} Bh4+
{[%clk 00:58:18]} {[%emt 00:00:30]} 23. Kg2 {[%clk 00:25:26]} {[%emt 00:01:32]}
Re8 {[%clk 00:56:20]} {[%emt 00:02:28]} 24. Qd1 {[%clk 00:22:40]} {[%emt
00:03:16]} Re3 {[%clk 00:50:01]} {[%emt 00:06:49]} 25. Nf2 {[%clk 00:20:58]}
{[%emt 00:02:12]} Bxf2 {[%clk 00:42:01]} {[%emt 00:08:30]} 26. Kxf2 {[%clk
00:21:06]} {[%emt 00:00:22]} Kg7 {[%clk 00:42:18]} {[%emt 00:00:13]} 27. Re1
{[%clk 00:21:33]} {[%emt 00:00:02]} Rxe1 {[%clk 00:41:53]} {[%emt 00:00:55]} 28.
Qxe1 {[%clk 00:21:42]} {[%emt 00:00:21]} Qxc2+ {[%clk 00:42:15]} {[%emt
00:00:09]} 29. Qe2 {[%clk 00:19:58]} {[%emt 00:02:14]} Qc5 {[%clk 00:41:24]}
{[%emt 00:01:20]} 30. Re1 {[%clk 00:18:38]} {[%emt 00:01:50]} d3+ {[%clk
00:39:01]} {[%emt 00:02:54]} 31. Qe3 {[%clk 00:19:03]} {[%emt 00:00:06]} Qc2+
{[%clk 00:39:17]} {[%emt 00:00:13]} 32. Kg3 {[%clk 00:18:58]} {[%emt 00:00:34]}
d2 {[%clk 00:38:42]} {[%emt 00:01:06]} 33. Qg5+ {[%clk 00:19:07]} {[%emt
00:00:20]} Qg6 {[%clk 00:37:21]} {[%emt 00:01:52]} 34. Qxg6+ {[%clk 00:19:14]}
{[%emt 00:00:23]} Kxg6 {[%clk 00:37:42]} {[%emt 00:00:08]} 35. Rd1 {[%clk
00:19:41]} {[%emt 00:00:04]} Rd8 {[%clk 00:37:42]} {[%emt 00:00:30]} 36. h4
{[%clk 00:19:34]} {[%emt 00:00:36]} Kf6 {[%clk 00:36:55]} {[%emt 00:01:17]} 37.
Kf4 {[%clk 00:18:58]} {[%emt 00:01:07]} Rd3 {[%clk 00:36:03]} {[%emt 00:01:21]}
38. Ke4 {[%clk 00:19:13]} {[%emt 00:00:16]} Rd5 {[%clk 00:30:49]} {[%emt
00:05:43]} 39. f4 {[%clk 00:19:02]} {[%emt 00:00:41]} Ke6 {[%clk 00:30:28]}
{[%emt 00:00:51]} 40. Ke3 {[%clk 00:19:07]} {[%emt 00:00:25]} h5 {[%clk
00:29:02]} {[%emt 00:01:57]} 41. gxh5 {[%clk 00:18:16]} {[%emt 00:01:21]} Rxh5
{[%clk 00:29:17]} {[%emt 00:00:15]} 42. Rxd2 {[%clk 00:18:40]} {[%emt
00:00:06]} Rxh4 {[%clk 00:29:34]} {[%emt 00:00:12]} 43. Rc2 {[%clk 00:19:02]}
{[%emt 00:00:09]} Kd6 {[%clk 00:28:38]} {[%emt 00:01:26]} 44. Ke4 {[%clk
00:18:06]} {[%emt 00:01:25]} Rh5 {[%clk 00:28:02]} {[%emt 00:01:06]} 45. Rd2+
{[%clk 00:17:26]} {[%emt 00:01:10]} Rd5 {[%clk 00:27:25]} {[%emt 00:01:07]} 46.
Rxd5+ {[%clk 00:17:04]} {[%emt 00:00:52]} cxd5+ {[%clk 00:27:49]} {[%emt
00:00:08]} 47. Kd4 {[%clk 00:17:18]} {[%emt 00:00:15]} f6 {[%clk 00:26:55]}
{[%emt 00:01:23]} 48. b4 {[%clk 00:17:34]} {[%emt 00:00:15]} Ke6 {[%clk
00:22:17]} {[%emt 00:05:08]} 49. b5 {[%clk 00:17:20]} {[%emt 00:00:44]} Kd6
{[%clk 00:22:29]} {[%emt 00:00:18]} 50. f5 {[%clk 00:17:40]} {[%emt 00:00:10]}
Kd7 {[%clk 00:22:02]} {[%emt 00:00:55]} 51. Kxd5 {[%clk 00:18:07]} {[%emt
00:00:05]} Kc7 {[%clk 00:21:51]} {[%emt 00:00:40]} 52. Kc5 {[%clk 00:18:30]}
{[%emt 00:00:08]} Kb7 {[%clk 00:21:59]} {[%emt 00:00:21]} 53. a4 {[%clk
00:18:34]} {[%emt 00:00:26]} Kc7 {[%clk 00:22:09]} {[%emt 00:00:20]} 54. a5
{[%clk 00:18:55]} {[%emt 00:00:10]} Kb7 {[%clk 00:22:23]} {[%emt 00:00:15]} 55.
b6 {[%clk 00:19:23]} {[%emt 00:00:03]} a6 {[%clk 00:22:36]} {[%emt 00:00:18]}
56. Kd6 {[%clk 00:19:42]} {[%emt 00:00:10]} 1-0

[Event "Nové Hrady - Open"]
[Site "Nové Hrady, Czech Republic"]
[Date "2023.08.15"]
[Round "3.8"]
[White "Berkovec, Jakub"]
[Black "Junek, Petr"]
[Result "1/2-1/2"]
[TimeControl "2x90min+30s"]
[WhiteFideId "23727080"]
[BlackFideId "23739282"]
[WhiteElo "1288"]
[BlackElo "1554"]

1. e4 {[%clk 01:30:58]} {[%emt 00:00:02]} e5 {[%clk 01:30:48]} {[%emt
00:00:12]} 2. Nf3 {[%clk 01:30:55]} {[%emt 00:00:33]} Nc6 {[%clk 01:31:10]}
{[%emt 00:00:09]} 3. d4 {[%clk 01:30:45]} {[%emt 00:00:40]} exd4 {[%clk
01:30:47]} {[%emt 00:00:53]} 4. Nxd4 {[%clk 01:30:19]} {[%emt 00:00:55]} Bc5
{[%clk 01:30:27]} {[%emt 00:00:50]} 5. Nb3 {[%clk 01:29:41]} {[%emt 00:01:08]}
Bb6 {[%clk 01:29:25]} {[%emt 00:01:32]} 6. Nc3 {[%clk 01:29:15]} {[%emt
00:00:56]} Nge7 {[%clk 01:28:19]} {[%emt 00:01:36]} 7. Qe2 {[%clk 01:27:06]}
{[%emt 00:02:40]} d6 {[%clk 01:27:05]} {[%emt 00:01:43]} 8. Be3 {[%clk
01:25:07]} {[%emt 00:02:29]} Be6 {[%clk 01:25:43]} {[%emt 00:01:52]} 9. O-O-O
{[%clk 01:23:23]} {[%emt 00:02:14]} Qc8 {[%clk 01:09:41]} {[%emt 00:16:32]} 10.
h3 {[%clk 01:18:49]} {[%emt 00:05:04]} Ne5 {[%clk 00:55:58]} {[%emt 00:14:13]}
11. f4 {[%clk 01:16:10]} {[%emt 00:03:08]} Nc4 {[%clk 00:52:10]} {[%emt
00:04:18]} 12. Bxb6 {[%clk 01:12:23]} {[%emt 00:04:17]} Nxb6 {[%clk 00:48:48]}
{[%emt 00:03:53]} 13. g4 {[%clk 01:10:57]} {[%emt 00:01:56]} Bc4 {[%clk
00:46:17]} {[%emt 00:03:01]} 14. Qe3 {[%clk 01:08:44]} {[%emt 00:02:44]}
1/2-1/2